fUSD/lending_fUSD_20250610
["ID","MTS","AMOUNT","RATE_DAILY","PERIOD"]
[365234767,1749559843288,-490.0,0.00017095,2]
[365234771,1749559843297,-490.0,0.00017095,2]
[365234776,1749559843306,-552.72,0.00017095,2]
[365234780,1749559843316,-490.0,0.00017095,2]
[365234786,1749559843326,-490.0,0.00017095,2]
[365234789,1749559843336,-490.0,0.00017095,2]
[365234795,1749559843350,-583.16,0.00017095,2]
[365234799,1749559843359,-430.0,0.00017095,2]
[365234802,1749559843369,-490.0,0.00017095,2]
[365234806,1749559843379,-571.88,0.00017095,2]
[365234810,1749559843389,-490.0,0.00017095,2]
[365234814,1749559843399,-471.06872336,0.00017095,2]
[365234819,1749559843408,-490.0,0.00017095,2]
[365234822,1749559843418,-171.04,0.00017095,2]
[365234826,1749559843427,-490.0,0.00017095,2]
[365234829,1749559843436,-490.0,0.00017095,2]
[365234832,1749559843447,-553.5930162,0.00017095,2]
[365234834,1749559843456,-7871.67,0.00017095,2]
[365234836,1749559843466,-1285.54,0.00017095,2]
[365234838,1749559843476,-607.03,0.00017095,2]
[365234839,1749559843485,-250.0,0.000172,2]
[365234841,1749559843495,-833.29909032,0.00017243,2]
[365234843,1749559843504,-500.0,0.00017259,2]
[365234844,1749559843514,-500.0,0.00017259,2]
[365234847,1749559843523,-490.0,0.0001726,2]
[365234850,1749559843533,-490.0,0.0001726,2]
[365234853,1749559843542,-490.0,0.0001726,2]
[365234856,1749559843552,-490.0,0.0001726,2]
[365234858,1749559843563,-568.12,0.0001726,2]
[365234862,1749559843573,-425.64,0.0001726,2]
[365234864,1749559843582,-490.0,0.0001726,2]
[365234867,1749559843591,-692.98,0.0001726,2]
[365234870,1749559843601,-490.0,0.0001726,2]
[365234873,1749559843610,-490.0,0.0001726,2]
[365234875,1749559843619,-490.0,0.0001726,2]
[365234877,1749559843628,-490.0,0.0001726,2]
[365234879,1749559843639,-490.0,0.0001726,2]
[365234881,1749559843653,-490.0,0.0001726,2]
[365234884,1749559843662,-490.0,0.0001726,2]
[365234887,1749559843671,-490.0,0.0001726,2]
[365234890,1749559843680,-490.0,0.0001726,2]
[365234893,1749559843689,-490.0,0.0001726,2]
[365234896,1749559843699,-238.83536176,0.0001726,2]
[365234899,1749559843708,-1138.97,0.0001726,2]
[365234901,1749559843717,-513.04,0.0001726,2]
[365234903,1749559843726,-518.97,0.0001726,2]
[365234905,1749559843736,-430.0,0.0001726,2]
[365234909,1749559843745,-374.44,0.0001726,2]
[365234912,1749559843755,-490.0,0.0001726,2]
[365234915,1749559843764,-490.0,0.0001726,2]
[365234917,1749559843774,-490.0,0.0001726,2]
[365234920,1749559843787,-490.0,0.0001726,2]
[365234922,1749559843797,-639.06817851,0.0001726,2]
[365234924,1749559843806,-1331.31,0.0001726,2]
[365234926,1749559843816,-490.0,0.0001726,2]
[365234928,1749559843825,-490.0,0.0001726,2]
[365234930,1749559843834,-490.0,0.0001726,2]
[365234932,1749559843843,-490.0,0.0001726,2]
[365234934,1749559843853,-490.0,0.0001726,2]
[365234936,1749559843861,-490.0,0.0001726,2]
[365234939,1749559843871,-490.0,0.0001726,2]
[365234941,1749559843880,-571.88,0.0001726,2]
[365234943,1749559843889,-490.0,0.0001726,2]
[365234945,1749559843898,-490.0,0.0001726,2]
[365234946,1749559843907,-342.22,0.0001726,2]
[365234948,1749559843916,-490.0,0.0001726,2]
[365234950,1749559843926,-7871.67,0.0001726,2]
[365234952,1749559843935,-1285.54,0.0001726,2]
[365234954,1749559843944,-607.03,0.0001726,2]
[365234956,1749559843953,-151.4,0.00017311,2]
[365234958,1749559843963,-340.0,0.00017322,3]
[365234960,1749559843972,-151.0,0.00017424,2]
[365234962,1749559843980,-151.0,0.00017424,2]
[365234964,1749559843990,-490.0,0.00017424,2]
[365234966,1749559843999,-239.58,0.00017424,2]
[365234968,1749559844008,-490.0,0.00017424,2]
[365234970,1749559844017,-490.0,0.00017424,2]
[365234972,1749559844027,-490.0,0.00017424,2]
[365234974,1749559844036,-692.98,0.00017424,2]
[365234976,1749559844047,-490.0,0.00017424,2]
[365234978,1749559844056,-490.0,0.00017424,2]
[365234980,1749559844065,-490.0,0.00017424,2]
[365234982,1749559844075,-490.0,0.00017424,2]
[365234984,1749559844085,-490.0,0.00017424,2]
[365234986,1749559844094,-490.0,0.00017424,2]
[365234988,1749559844104,-490.0,0.00017424,2]
[365234990,1749559844113,-490.0,0.00017424,2]
[365234992,1749559844123,-490.0,0.00017424,2]
[365234994,1749559844132,-490.0,0.00017424,2]
[365234996,1749559844141,-1138.97,0.00017424,2]
[365234998,1749559844151,-513.04,0.00017424,2]
[365235000,1749559844160,-518.97,0.00017424,2]
[365235002,1749559844169,-248.56122312,0.00017424,2]
[365235004,1749559844179,-333.52,0.00017424,2]
[365235007,1749559844189,-490.0,0.00017424,2]
[365235008,1749559844198,-490.0,0.00017424,2]
[365235011,1749559844208,-1331.31,0.00017424,2]
[365235013,1749559844218,-490.0,0.00017424,2]
[365235014,1749559844228,-490.0,0.00017424,2]
[365235017,1749559844238,-490.0,0.00017424,2]
[365235019,1749559844247,-599.58,0.00017424,2]
[365235021,1749559844257,-490.0,0.00017424,2]
[365235023,1749559844266,-420.0,0.00017424,2]
[365235025,1749559844276,-490.0,0.00017424,2]
[365235027,1749559844287,-571.88,0.00017424,2]
[365235029,1749559844297,-490.0,0.00017424,2]
[365235031,1749559844306,-490.0,0.00017424,2]
[365235033,1749559844317,-490.0,0.00017424,2]
[365235034,1749559844326,-7871.67,0.00017424,2]
[365235036,1749559844336,-1285.54,0.00017424,2]
[365235038,1749559844346,-607.03,0.00017424,2]
[365235040,1749559844356,-500.0,0.00017534,2]
[365235043,1749559844366,-658.74703324,0.00017568,2]
[365235045,1749559844376,-151.0,0.00017589,2]
[365235047,1749559844386,-166.655279,0.00017589,2]
[365235049,1749559844396,-281.340244,0.00017589,2]
[365235051,1749559844406,-281.340244,0.00017589,2]
[365235053,1749559844415,-490.0,0.00017589,2]
[365235055,1749559844424,-168.64,0.00017589,2]
[365235057,1749559844434,-410.0,0.00017589,2]
[365235059,1749559844444,-490.0,0.00017589,2]
[365235061,1749559844453,-692.98,0.00017589,2]
[365235062,1749559844463,-490.0,0.00017589,2]
[365235065,1749559844473,-547.35444717,0.00017589,2]
[365235066,1749559844482,-490.0,0.00017589,2]
[365235068,1749559844492,-490.0,0.00017589,2]
[365235071,1749559844503,-490.0,0.00017589,2]
[365235072,1749559844512,-490.0,0.00017589,2]
[365235074,1749559844522,-490.0,0.00017589,2]
[365235076,1749559844533,-490.0,0.00017589,2]
[365235079,1749559844543,-359.79,0.00017589,2]
[365235081,1749559844555,-490.0,0.00017589,2]
[365235082,1749559844568,-1138.97,0.00017589,2]
[365235085,1749559844578,-513.04,0.00017589,2]
[365235087,1749559844589,-518.97,0.00017589,2]
[365235088,1749559844600,-490.0,0.00017589,2]
[365235091,1749559844611,-490.0,0.00017589,2]
[365235093,1749559844622,-1331.31,0.00017589,2]
[365235095,1749559844632,-490.0,0.00017589,2]
[365235097,1749559844643,-490.0,0.00017589,2]
[365235099,1749559844653,-490.0,0.00017589,2]
[365235101,1749559844664,-490.0,0.00017589,2]
[365235103,1749559844674,-490.0,0.00017589,2]
[365235105,1749559844683,-571.88,0.00017589,2]
[365235107,1749559844694,-490.0,0.00017589,2]
[365235109,1749559844704,-490.0,0.00017589,2]
[365235111,1749559844714,-585.81,0.00017589,2]
[365235113,1749559844724,-7871.67,0.00017589,2]
[365235141,1749559844982,-1285.54,0.00017589,2]
[365235144,1749559844995,-151.0,0.0001759,2]
[365235146,1749559845006,-151.0,0.0001759,2]
[365235148,1749559845016,-300.0,0.00017634,2]
[365235150,1749559845028,-300.0,0.00017634,2]
[365235152,1749559845038,-300.0,0.00017634,2]
[365235154,1749559845048,-1678.0,0.00017642,2]
[365235156,1749559845058,-184.0,0.00017678,2]
[365235158,1749559845068,-420.0,0.00017688,2]
[365235160,1749559845079,-643.26,0.00017692,2]
[365235162,1749559845091,-1565.0,0.00017728,2]
[365235164,1749559845101,-300.0,0.00017752,2]
[365235166,1749559845111,-151.0,0.00017753,2]
[365235168,1749559845121,-281.340244,0.00017753,2]
[365235171,1749559845134,-281.340244,0.00017753,2]
[365235172,1749559845144,-242.44,0.00017753,2]
[365235174,1749559845153,-490.0,0.00017753,2]
[365235176,1749559845163,-692.98,0.00017753,2]
[365235177,1749559845172,-490.0,0.00017753,2]
[365235178,1749559845182,-490.0,0.00017753,2]
[365235179,1749559845192,-490.0,0.00017753,2]
[365235180,1749559845205,-490.0,0.00017753,2]
[365235181,1749559845214,-490.0,0.00017753,2]
[365235182,1749559845224,-490.0,0.00017753,2]
[365235183,1749559845233,-231.47,0.00017753,2]
[365235185,1749559845243,-490.0,0.00017753,2]
[365235187,1749559845252,-1138.97,0.00017753,2]
[365235189,1749559845261,-513.04,0.00017753,2]
[365235191,1749559845271,-518.97,0.00017753,2]
[365235193,1749559845282,-477.52,0.00017753,2]
[365235195,1749559845293,-490.0,0.00017753,2]
[365235197,1749559845303,-1331.31,0.00017753,2]
[365235199,1749559845313,-490.0,0.00017753,2]
[365235201,1749559845322,-490.0,0.00017753,2]
[365235203,1749559845333,-490.0,0.00017753,2]
[365235205,1749559845347,-490.0,0.00017753,2]
[365235207,1749559845357,-490.0,0.00017753,2]
[365235209,1749559845367,-571.88,0.00017753,2]
[365235211,1749559845377,-490.0,0.00017753,2]
[365235213,1749559845387,-490.0,0.00017753,2]
[365235215,1749559845397,-7871.67,0.00017753,2]
[365235217,1749559845407,-1285.54,0.00017753,2]
[365235219,1749559845417,-340.0,0.00017762,3]
[365235221,1749559845427,-1332.0,0.00017764,2]
[365235223,1749559845436,-600.0,0.0001778,4]
[365235225,1749559845446,-300.0,0.00017799,2]
[365235227,1749559845456,-6586.97,0.000178,2]
[365235229,1749559845465,-267.71,0.000178,2]
[365235231,1749559845475,-1323.66463527,0.000178,2]
[365235233,1749559845485,-1323.66463515,0.000178,2]
[365235235,1749559845494,-1323.66463515,0.000178,2]
[365235237,1749559845504,-1323.66463515,0.000178,2]
[365235239,1749559845514,-1323.66463515,0.000178,2]
[365235241,1749559845524,-1323.66463515,0.000178,2]
[365235243,1749559845534,-1323.66463515,0.000178,2]
[365235245,1749559845543,-1323.66463515,0.000178,2]
[365235247,1749559845558,-1323.66463515,0.000178,2]
[365235249,1749559845572,-500.0,0.00017808,2]
[365235251,1749559845581,-500.0,0.00017808,2]
[365235253,1749559845591,-500.0,0.00017808,2]
[365235255,1749559845600,-250.76723177,0.00017808,2]
[365235257,1749559845610,-279.0,0.00017815,2]
[365235259,1749559845620,-1323.66463515,0.00017831,2]
[365235261,1749559845629,-966.0,0.00017851,2]
[365235263,1749559845639,-151.0,0.000179,2]
[365235265,1749559845649,-253.73723,0.000179,2]
[365235267,1749559845659,-151.0,0.000179,2]
[365235269,1749559845668,-281.340244,0.000179,2]
[365235271,1749559845677,-281.340244,0.000179,2]
[365235273,1749559845686,-6586.97,0.000179,2]
[365235275,1749559845694,-6586.97,0.000179,2]
[365235277,1749559845704,-267.71,0.000179,2]
[365235279,1749559845713,-267.71,0.000179,2]
[365235281,1749559845723,-530.0,0.00017901,2]
[365235283,1749559845732,-306.41126273,0.00017916,2]
[365235285,1749559845742,-490.0,0.00017917,2]
[365235287,1749559845751,-692.98,0.00017917,2]
[365235288,1749559845760,-490.0,0.00017917,2]
[365235291,1749559845770,-490.0,0.00017917,2]
[365235293,1749559845780,-560.88,0.00017917,2]
[365235295,1749559845790,-490.0,0.00017917,2]
[365235297,1749559845801,-490.0,0.00017917,2]
[365235299,1749559845811,-490.0,0.00017917,2]
[365235301,1749559845820,-490.0,0.00017917,2]
[365235303,1749559845829,-1138.97,0.00017917,2]
[365235305,1749559845838,-513.04,0.00017917,2]
[365235307,1749559845847,-518.97,0.00017917,2]
[365235309,1749559845857,-490.0,0.00017917,2]
[365235311,1749559845866,-1331.31,0.00017917,2]
[365235313,1749559845875,-490.0,0.00017917,2]
[365235315,1749559845885,-490.0,0.00017917,2]
[365235317,1749559845895,-365.36,0.00017917,2]
[365235319,1749559845904,-490.0,0.00017917,2]
[365235321,1749559845913,-490.0,0.00017917,2]
[365235323,1749559845922,-571.88,0.00017917,2]
[365235325,1749559845931,-490.0,0.00017917,2]
[365235327,1749559845939,-490.0,0.00017917,2]
[365235329,1749559845948,-7871.67,0.00017917,2]
[365235331,1749559845958,-1285.54,0.00017917,2]
[365235333,1749559845967,-1323.66463515,0.00017934,2]
[365235335,1749559845976,-1012.0,0.00017938,2]
[365235336,1749559845985,-168.0,0.00017988,2]
[365235338,1749559845994,-231.26385998,0.00017989,2]
[365235341,1749559846003,-500.0,0.00017989,2]
[365235342,1749559846013,-151.0,0.0001799,2]
[365235344,1749559846022,-151.0,0.0001799,2]
[365235346,1749559846032,-281.340244,0.0001799,2]
[365235349,1749559846047,-281.340244,0.0001799,2]
[365235351,1749559846056,-6586.97,0.00018,2]
[365235353,1749559846065,-6586.97,0.00018,2]
[365235355,1749559846074,-267.71,0.00018,2]
[365235357,1749559846084,-267.71,0.00018,2]
[365235360,1749559846093,-151.0,0.00018,2]
[365235363,1749559846103,-151.0,0.00018,2]
[365235365,1749559846113,-281.340244,0.00018,2]
[365235367,1749559846122,-281.340244,0.00018,2]
[365235369,1749559846131,-352.0,0.00018024,2]
[365235371,1749559846143,-500.0,0.00018033,2]
[365235374,1749559846153,-500.0,0.00018033,2]
[365235377,1749559846163,-300.73767172,0.00018033,2]
[365235380,1749559846174,-152.42765538,0.00018033,2]
[365235382,1749559846184,-500.0,0.00018033,2]
[365235384,1749559846193,-502.0239732,0.00018033,2]
[365235386,1749559846206,-500.0,0.00018033,2]
[365235388,1749559846217,-500.0,0.00018033,2]
[365235390,1749559846226,-579.05348255,0.00018033,2]
[365235392,1749559846236,-500.0,0.00018033,2]
[365235394,1749559846245,-1323.66463515,0.00018038,2]
[365235396,1749559846255,-500.0,0.00018064,2]
[365235398,1749559846265,-503.36061692,0.00018064,2]
[365235400,1749559846275,-500.0,0.00018064,2]
[365235402,1749559846284,-500.0,0.00018064,2]
[365235404,1749559846294,-500.0,0.0001807,2]
[365235406,1749559846304,-490.0,0.00018082,2]
[365235408,1749559846315,-692.98,0.00018082,2]
[365235410,1749559846325,-490.0,0.00018082,2]
[365235412,1749559846335,-490.0,0.00018082,2]
[365235414,1749559846345,-331.51,0.00018082,2]
[365235416,1749559846355,-490.0,0.00018082,2]
[365235418,1749559846366,-490.0,0.00018082,2]
[365235420,1749559846376,-490.0,0.00018082,2]
[365235422,1749559846386,-1138.97,0.00018082,2]
[365235424,1749559846395,-513.04,0.00018082,2]
[365235427,1749559846405,-518.97,0.00018082,2]
[365235429,1749559846416,-490.0,0.00018082,2]
[365235431,1749559846426,-1331.31,0.00018082,2]
[365235433,1749559846436,-490.0,0.00018082,2]
[365235435,1749559846446,-490.0,0.00018082,2]
[365235437,1749559846455,-490.0,0.00018082,2]
[365235439,1749559846465,-490.0,0.00018082,2]
[365235441,1749559846474,-571.88,0.00018082,2]
[365235443,1749559846483,-452.35,0.00018082,2]
[365235444,1749559846493,-490.0,0.00018082,2]
[365235446,1749559846502,-7871.67,0.00018082,2]
[365235449,1749559846512,-1285.54,0.00018082,2]
[365235451,1749559846522,-505.35749419,0.000181,2]
[365235452,1749559846532,-500.0,0.000181,2]
[365235454,1749559846542,-500.0,0.000181,2]
[365235457,1749559846553,-500.0,0.000181,2]
[365235459,1749559846564,-500.0,0.000181,2]
[365235461,1749559846574,-1850.0,0.00018111,2]
[365235463,1749559846584,-152.30567012,0.00018118,2]
[365235464,1749559846593,-1323.66463515,0.00018141,2]
[365235466,1749559846603,-3482.86326036,0.00018195,2]
[365235468,1749559846612,-917.0,0.00018198,2]
[365235470,1749559846623,-340.0,0.00018202,4]
[365235472,1749559846632,-1680.0,0.0001823,2]
[365235475,1749559846642,-1323.66463515,0.00018245,2]
[365235477,1749559846652,-324.64,0.00018246,2]
[365235478,1749559846662,-692.98,0.00018246,2]
[365235480,1749559846673,-490.0,0.00018246,2]
[365235482,1749559846683,-490.0,0.00018246,2]
[365235485,1749559846693,-495.65,0.00018246,2]
[365235488,1749559846703,-490.0,0.00018246,2]
[365235490,1749559846714,-490.0,0.00018246,2]
[365235491,1749559846723,-1138.97,0.00018246,2]
[365235494,1749559846734,-513.04,0.00018246,2]
[365235496,1749559846743,-518.97,0.00018246,2]
[365235498,1749559846752,-490.0,0.00018246,2]
[365235499,1749559846761,-1331.31,0.00018246,2]
[365235501,1749559846771,-208.63,0.00018246,2]
[365235502,1749559846781,-490.0,0.00018246,2]
[365235503,1749559846791,-490.0,0.00018246,2]
[365235504,1749559846800,-490.0,0.00018246,2]
[365235505,1749559846809,-571.88,0.00018246,2]
[365235506,1749559846818,-490.0,0.00018246,2]
[365235507,1749559846827,-7871.67,0.00018246,2]
[365235508,1749559846836,-1285.54,0.00018246,2]
[365235510,1749559846846,-806.0,0.00018284,2]
[365235511,1749559846855,-1000.0,0.00018312,2]
[365235513,1749559846865,-1165.05,0.00018335,2]
[365235515,1749559846874,-1323.66463515,0.00018348,2]
[365235518,1749559846884,-151.0,0.00018356,2]
[365235519,1749559846893,-281.340244,0.00018356,2]
[365235521,1749559846902,-281.340244,0.00018356,2]
[365235523,1749559846911,-3815.82,0.00018356,2]
[365235525,1749559846921,-150.0,0.00018356,2]
[365235527,1749559846930,-150.0,0.00018356,2]
[365235529,1749559846942,-163.33,0.00018356,2]
[365235531,1749559846952,-150.0,0.00018356,2]
[365235533,1749559846961,-163.33,0.00018356,2]
[365235535,1749559846971,-163.33,0.00018356,2]
[365235537,1749559846980,-163.33,0.00018356,2]
[365235539,1749559846990,-163.33,0.00018356,2]
[365235541,1749559846999,-1133.0,0.00018371,2]
[365235543,1749559847009,-644.35286379,0.00018383,2]
[365235545,1749559847018,-151.0,0.00018384,2]
[365235547,1749559847028,-1316.106,0.00018408,2]
[365235549,1749559847037,-184.443,0.00018408,2]
[365235551,1749559847047,-692.98,0.0001841,2]
[365235553,1749559847059,-318.89,0.0001841,2]
[365235555,1749559847069,-214.41,0.0001841,2]
[365235558,1749559847079,-490.0,0.0001841,2]
[365235560,1749559847090,-490.0,0.0001841,2]
[365235562,1749559847099,-1138.97,0.0001841,2]
[365235564,1749559847108,-513.04,0.0001841,2]
[365235566,1749559847118,-518.97,0.0001841,2]
[365235568,1749559847128,-490.0,0.0001841,2]
[365235570,1749559847137,-1331.31,0.0001841,2]
[365235572,1749559847147,-493.120001,0.0001841,2]
[365235574,1749559847156,-490.0,0.0001841,2]
[365235576,1749559847165,-490.0,0.0001841,2]
[365235578,1749559847175,-571.88,0.0001841,2]
[365235580,1749559847184,-490.0,0.0001841,2]
[365235582,1749559847193,-7871.67,0.0001841,2]
[365235584,1749559847203,-1285.54,0.0001841,2]
[365235587,1749559847213,-1323.66463515,0.00018452,2]
[365235590,1749559847222,-152.30567012,0.00018474,2]
[365235592,1749559847232,-945.0,0.00018485,2]
[365235594,1749559847241,-3330.0,0.00018485,2]
[365235596,1749559847251,-1159.0,0.00018485,2]
[365235598,1749559847260,-428.784,0.00018485,2]
[365235600,1749559847270,-637.0,0.00018485,2]
[365235602,1749559847281,-802.0,0.00018485,2]
[365235604,1749559847291,-1275.0,0.00018485,2]
[365235606,1749559847301,-2001.0,0.00018485,2]
[365235608,1749559847312,-558.0,0.00018485,2]
[365235610,1749559847322,-927.0,0.00018485,2]
[365235612,1749559847331,-590.0,0.00018485,2]
[365235614,1749559847340,-1256.0,0.00018485,2]
[365235622,1749559847401,-7064.0,0.00018485,2]
[365235624,1749559847411,-883.0,0.00018485,2]
[365235626,1749559847421,-4085.0,0.00018485,2]
[365235628,1749559847431,-155.0,0.00018485,2]
[365235630,1749559847440,-853.0,0.00018485,2]
[365235632,1749559847449,-796.87,0.00018494,2]
[365235634,1749559847458,-796.87,0.00018502,2]
[365235636,1749559847467,-3482.86326036,0.00018536,2]
[365235638,1749559847476,-1323.66463515,0.00018555,2]
[365235640,1749559847485,-300.0,0.00018574,2]
[365235642,1749559847494,-692.98,0.00018575,2]
[365235644,1749559847504,-490.0,0.00018575,2]
[365235646,1749559847513,-490.0,0.00018575,2]
[365235648,1749559847523,-1138.97,0.00018575,2]
[365235650,1749559847533,-513.04,0.00018575,2]
[365235652,1749559847542,-518.97,0.00018575,2]
[365235653,1749559847554,-167.14911713,0.00018575,2]
[365235655,1749559847567,-1331.31,0.00018575,2]
[365235658,1749559847579,-490.0,0.00018575,2]
[365235659,1749559847588,-490.0,0.00018575,2]
[365235662,1749559847597,-571.88,0.00018575,2]
[365235663,1749559847607,-490.0,0.00018575,2]
[365235665,1749559847616,-7871.67,0.00018575,2]
[365235667,1749559847625,-1285.54,0.00018575,2]
[365235670,1749559847634,-150.0,0.00018575,2]
[365235672,1749559847644,-662.10781707,0.00018581,2]
[365235674,1749559847652,-1000.0,0.00018581,2]
[365235676,1749559847661,-504.54491269,0.00018581,2]
[365235678,1749559847670,-204.27782473,0.00018581,2]
[365235680,1749559847679,-1000.0,0.00018581,2]
[365235682,1749559847688,-533.95675889,0.00018581,2]
[365235684,1749559847697,-501.57459561,0.00018612,2]
[365235686,1749559847706,-1000.0,0.00018612,2]
[365235688,1749559847715,-1000.0,0.00018618,2]
[365235690,1749559847724,-865.090498,0.0001862,2]
[365235692,1749559847733,-500.0,0.0001863,2]
[365235694,1749559847742,-340.0,0.00018642,4]
[365235696,1749559847751,-1001.90482839,0.00018648,2]
[365235698,1749559847760,-1000.0,0.00018648,2]
[365235700,1749559847769,-1000.0,0.00018648,2]
[365235702,1749559847780,-1323.66463515,0.00018659,2]
[365235704,1749559847790,-13737.00754386,0.0001866,2]
[365235706,1749559847800,-300.0,0.00018738,2]
[365235708,1749559847809,-692.98,0.00018739,2]
[365235710,1749559847818,-490.0,0.00018739,2]
[365235712,1749559847828,-457.44,0.00018739,2]
[365235714,1749559847837,-1138.97,0.00018739,2]
[365235716,1749559847846,-513.04,0.00018739,2]
[365235718,1749559847855,-518.97,0.00018739,2]
[365235720,1749559847864,-1331.31,0.00018739,2]
[365235721,1749559847873,-490.0,0.00018739,2]
[365235723,1749559847882,-490.0,0.00018739,2]
[365235725,1749559847891,-571.88,0.00018739,2]
[365235727,1749559847900,-490.0,0.00018739,2]
[365235729,1749559847909,-7871.67,0.00018739,2]
[365235731,1749559847918,-1323.66463515,0.00018762,2]
[365235733,1749559847928,-867.72711631,0.00018797,2]
[365235735,1749559847937,-152.30567012,0.0001883,2]
[365235737,1749559847946,-500.0,0.00018847,2]
[365235739,1749559847955,-151.0,0.00018848,2]
[365235741,1749559847965,-281.340244,0.00018848,2]
[365235743,1749559847978,-281.340244,0.00018848,2]
[365235746,1749559847988,-500.0,0.00018848,2]
[365235748,1749559847998,-2126.25995796,0.00018854,2]
[365235749,1749559848008,-2162.92662463,0.00018861,2]
[365235752,1749559848017,-2126.25995796,0.00018862,2]
[365235753,1749559848027,-2126.25995796,0.00018863,2]
[365235755,1749559848036,-2009.43430011,0.00018864,2]
[365235758,1749559848046,-1323.66463515,0.00018866,2]
[365235759,1749559848055,-592.58321176,0.00018867,2]
[365235761,1749559848065,-200.0,0.00018868,2]
[365235763,1749559848074,-2162.92662463,0.0001887,2]
[365235766,1749559848084,-583.92155836,0.00018873,2]
[365235767,1749559848094,-1064.97382932,0.00018874,2]
[365235769,1749559848103,-213.70604618,0.00018876,2]
[365235772,1749559848112,-3482.86326036,0.00018877,2]
[365235773,1749559848122,-213.70604618,0.00018878,2]
[365235775,1749559848131,-592.58321176,0.00018881,2]
[365235777,1749559848140,-9497.09267603,0.00018887,2]
[365235779,1749559848149,-583.92155835,0.00018889,2]
[365235781,1749559848158,-1076.47057962,0.00018892,2]
[365235783,1749559848168,-2009.43430011,0.00018892,2]
[365235785,1749559848177,-765.45964904,0.00018897,2]
[365235787,1749559848186,-2009.43430011,0.00018897,2]
[365235789,1749559848195,-248.86685415,0.00018899,2]
[365235791,1749559848204,-6681.462,0.000189,2]
[365235793,1749559848214,-323.92487372,0.000189,2]
[365235795,1749559848223,-4730.58242954,0.00018901,2]
[365235796,1749559848233,-300.0,0.00018903,2]
[365235797,1749559848242,-692.98,0.00018904,2]
[365235798,1749559848252,-490.0,0.00018904,2]
[365235799,1749559848261,-1138.97,0.00018904,2]
[365235800,1749559848271,-513.04,0.00018904,2]
[365235801,1749559848281,-518.97,0.00018904,2]
[365235802,1749559848290,-1331.31,0.00018904,2]
[365235803,1749559848300,-490.0,0.00018904,2]
[365235805,1749559848310,-490.0,0.00018904,2]
[365235807,1749559848322,-571.88,0.00018904,2]
[365235809,1749559848332,-490.0,0.00018904,2]
[365235811,1749559848343,-7871.67,0.00018904,2]
[365235813,1749559848354,-500.0,0.00018904,2]
[365235815,1749559848364,-583.92155835,0.00018911,2]
[365235817,1749559848374,-2009.43430012,0.00018913,2]
[365235819,1749559848383,-765.45964904,0.00018916,2]
[365235821,1749559848393,-1170.85775953,0.00018919,2]
[365235823,1749559848403,-583.92155835,0.0001892,2]
[365235824,1749559848412,-2635.54129474,0.0001893,2]
[365235826,1749559848422,-765.45964904,0.00018931,2]
[365235828,1749559848431,-1076.47057962,0.00018933,2]
[365235830,1749559848441,-2009.43430011,0.00018934,2]
[365235832,1749559848451,-1064.97382932,0.00018935,2]
[365235834,1749559848460,-200.0,0.0001894,2]